bitfinex/quotes_BTCUSD_20250903
["timestamp","ask_amount","ask_price","bid_price","bid_amount"]
[1756888350986,1.22053302,111300.0,111290.0,0.001]
[1756888351425,0.51972681,111280.0,111270.0,0.34021003]
[1756888351631,0.51972681,111280.0,111270.0,0.34222003]
[1756888351632,0.945132,111280.0,111270.0,0.34222003]
[1756888351832,0.942992,111280.0,111270.0,0.34534003]
[1756888353449,0.945132,111280.0,111270.0,0.34222003]
[1756888353806,0.942992,111280.0,111270.0,0.34634003]
[1756888354010,0.942992,111280.0,111270.0,0.34734003]
[1756888354427,0.51972681,111280.0,111270.0,0.34734003]
[1756888354636,0.942992,111280.0,111270.0,0.34734003]
[1756888359211,0.944982,111280.0,111270.0,0.34734003]
[1756888360598,0.944982,111280.0,111270.0,0.34422003]
[1756888361048,0.944982,111280.0,111270.0,0.34740003]
[1756888364897,0.944982,111280.0,111270.0,0.34422003]
[1756888365046,0.947962,111280.0,111270.0,0.15348]
[1756888365625,0.947962,111280.0,111270.0,0.33322296]
[1756888366243,0.947962,111280.0,111270.0,0.33532296]
[1756888366453,0.944982,111280.0,111270.0,0.33532296]
[1756888367771,0.947962,111280.0,111270.0,0.33532296]
[1756888368223,0.947962,111280.0,111270.0,0.15558]
[1756888368432,0.947962,111280.0,111270.0,0.15348]
[1756888370069,0.947962,111280.0,111270.0,0.002]
[1756888370268,1.03987799,111280.0,111270.0,0.15344]
[1756888370744,1.03987799,111280.0,111270.0,0.002]
[1756888370745,1.21829836,111280.0,111270.0,0.002]
[1756888371054,1.21829836,111280.0,111270.0,0.1534]
[1756888371927,1.21829836,111280.0,111270.0,0.002]
[1756888372149,1.64156355,111280.0,111270.0,0.002]
[1756888372587,1.21829836,111280.0,111270.0,0.002]
[1756888372789,1.64156355,111280.0,111270.0,0.001]
[1756888373902,0.51974296,111270.0,111260.0,0.15166582]
[1756888374137,0.94300815,111270.0,111260.0,0.15175002]
[1756888374543,0.94797815,111270.0,111260.0,0.15175002]
[1756888374763,0.97500002,111270.0,111260.0,0.15175002]
[1756888375113,0.97500002,111270.0,111260.0,0.15275002]
[1756888375540,0.8695317,111270.0,111260.0,0.15275002]
[1756888376277,0.8665517,111270.0,111260.0,0.33460914]
[1756888376596,0.36702187,111270.0,111260.0,0.33778914]
[1756888376920,0.68481874,111270.0,111260.0,0.33878914]
[1756888377205,0.36702187,111270.0,111260.0,0.33878914]
[1756888377395,0.68481874,111270.0,111260.0,0.33878914]
[1756888377783,0.87355711,111270.0,111260.0,0.33878914]
[1756888379610,0.87554711,111270.0,111260.0,0.15585002]
[1756888379809,1.31244711,111270.0,111260.0,0.15585002]
[1756888381232,1.31542711,111270.0,111260.0,0.15585002]
[1756888381441,1.31244711,111270.0,111260.0,0.15585002]
[1756888382700,1.31542711,111270.0,111260.0,0.15375002]
[1756888386185,1.31045711,111270.0,111260.0,0.15375002]
[1756888386405,1.31542711,111270.0,111260.0,0.15375002]
[1756888386618,1.46678711,111270.0,111260.0,0.15375002]
[1756888386832,1.31542711,111270.0,111260.0,0.15375002]
[1756888388370,0.99763024,111270.0,111260.0,0.15375002]
[1756888388553,1.31542711,111270.0,111260.0,0.15375002]
[1756888389754,1.31045711,111270.0,111260.0,0.15375002]
[1756888394275,1.46181711,111270.0,111260.0,0.15375002]
[1756888396782,1.31045711,111270.0,111260.0,0.15375002]
[1756888396968,1.31045711,111270.0,111260.0,0.33350914]
[1756888397509,1.31045711,111270.0,111260.0,0.15375002]
[1756888398359,1.31045711,111270.0,111260.0,0.33350914]
[1756888398589,1.31045711,111270.0,111260.0,0.15375002]
[1756888399255,1.46177711,111270.0,111260.0,0.00235002]
[1756888399452,1.46177711,111270.0,111260.0,0.15367002]
[1756888400467,1.46177711,111270.0,111260.0,0.00235002]
[1756888401691,1.77957398,111270.0,111260.0,0.00235002]
[1756888404027,1.46177711,111270.0,111260.0,0.00235002]
[1756888404747,1.77957398,111270.0,111260.0,0.00235002]
[1756888404992,1.46177711,111270.0,111260.0,0.00235002]
[1756888405457,1.77957398,111270.0,111260.0,0.00235002]
[1756888410433,1.87148997,111270.0,111260.0,0.00235002]
[1756888412433,1.87144997,111270.0,111260.0,0.00235002]
[1756888412664,1.5536531,111270.0,111260.0,0.00235002]
[1756888413425,1.87144997,111270.0,111260.0,0.00235002]
[1756888414039,1.72016997,111270.0,111260.0,0.00235002]
[1756888414259,1.08457623,111270.0,111260.0,0.00235002]
[1756888414716,0.99266024,111270.0,111260.0,0.00235002]
[1756888414944,1.31045711,111270.0,111260.0,0.00235002]
[1756888416591,1.46173711,111270.0,111260.0,0.00235002]
[1756888421488,1.77953398,111270.0,111260.0,0.00235002]
[1756888426480,1.31045711,111270.0,111260.0,0.18210914]
[1756888426671,0.99266024,111270.0,111260.0,0.18210914]
[1756888426923,1.31045711,111270.0,111260.0,0.18210914]
[1756888429385,1.13071415,111270.0,111260.0,0.18210914]
[1756888429588,0.7769,111270.0,111260.0,0.18210914]
[1756888429785,0.64875144,111290.0,111280.0,0.17972681]
[1756888429985,0.30759973,111290.0,111280.0,0.17972681]
[1756888430248,0.6253966,111290.0,111280.0,0.17972681]
[1756888430766,0.9653966,111290.0,111280.0,0.17972681]
[1756888431203,0.9663966,111290.0,111280.0,0.17972681]
[1756888432087,0.34,111280.0,111270.0,0.33092912]
[1756888432380,0.65779687,111280.0,111270.0,0.33092912]
[1756888433160,0.65779687,111280.0,111270.0,0.17972912]
[1756888433343,0.65779687,111280.0,111270.0,0.3331759]
[1756888433543,0.65779687,111280.0,111270.0,0.33092912]
[1756888433994,1.15532055,111280.0,111270.0,0.33194296]
[1756888434950,1.15532055,111280.0,111270.0,0.33294296]
[1756888435495,0.83752368,111280.0,111270.0,0.18174296]
[1756888435708,0.94335576,111280.0,111270.0,0.18174296]
[1756888435912,0.94335576,111280.0,111270.0,0.33294296]
[1756888436346,0.76362895,111280.0,111270.0,0.33294296]
[1756888436777,0.94335576,111280.0,111270.0,0.33294296]
[1756888437307,1.51818471,111280.0,111270.0,0.002]
[1756888438152,1.09455576,111280.0,111270.0,0.002]
[1756888439169,1.53141576,111280.0,111270.0,0.002]
[1756888439568,1.38025576,111280.0,111270.0,0.002]
[1756888439799,1.53141576,111280.0,111270.0,0.002]
[1756888443067,2.0469607,111280.0,111270.0,0.002]
[1756888443235,2.07398284,111280.0,111270.0,0.002]
[1756888443859,2.07398284,111280.0,111270.0,0.001]
[1756888444266,0.51974296,111270.0,111260.0,0.00035002]
[1756888444472,1.09453191,111270.0,111260.0,0.00035002]
[1756888445515,1.12155406,111270.0,111260.0,0.00035002]
[1756888446677,1.12155406,111270.0,111260.0,0.00135002]
[1756888446920,1.21347005,111270.0,111260.0,0.00135002]
[1756888447579,1.21347005,111270.0,111260.0,0.00235002]
[1756888449849,1.21872005,111270.0,111260.0,0.00235002]
[1756888453856,1.21872005,111270.0,111260.0,0.00035002]
[1756888454075,1.22072005,111270.0,111260.0,0.00035002]
[1756888455304,1.22172005,111270.0,111260.0,0.00035002]
[1756888455912,1.22072005,111270.0,111260.0,0.00035002]
[1756888456115,1.22172005,111270.0,111260.0,0.00035002]
[1756888457157,1.07056005,111270.0,111260.0,0.00035002]
[1756888457363,1.22168005,111270.0,111260.0,0.00035002]
[1756888458595,0.17977528,111250.0,111230.0,0.31921207]
[1756888458792,0.94340423,111250.0,111240.0,0.00261799]
[1756888459000,0.51977528,111250.0,111240.0,0.00261799]
[1756888459209,0.94340423,111250.0,111240.0,0.00261799]
[1756888459419,0.94865423,111250.0,111240.0,0.00261799]
[1756888460775,0.94865423,111250.0,111240.0,0.00361799]
[1756888461037,0.94865423,111250.0,111240.0,0.00461799]
[1756888461658,0.94542423,111250.0,111240.0,0.00461799]
[1756888462691,0.94865423,111250.0,111240.0,0.00461799]
[1756888463411,1.09977423,111250.0,111240.0,0.00461799]
[1756888464080,1.09977423,111250.0,111240.0,0.00246799]
[1756888465734,1.09977423,111250.0,111240.0,0.00461799]
[1756888466149,0.94865423,111250.0,111240.0,0.00461799]
[1756888466959,0.94865423,111250.0,111240.0,0.00246799]
[1756888467170,1.09977423,111250.0,111240.0,0.00246799]
[1756888470619,0.67614528,111250.0,111240.0,0.00246799]
[1756888470831,1.09977423,111250.0,111240.0,0.00246799]
[1756888474611,1.09973423,111250.0,111240.0,0.00246799]
[1756888474985,1.19165022,111250.0,111240.0,0.00246799]
[1756888475347,1.21867914,111250.0,111240.0,0.00246799]
[1756888476101,1.06759914,111250.0,111240.0,0.00246799]
[1756888476248,1.21867914,111250.0,111240.0,0.00246799]
[1756888478053,1.21867914,111250.0,111240.0,0.00146799]
[1756888478288,1.06759914,111250.0,111240.0,0.00146799]
[1756888478502,1.21867914,111250.0,111240.0,0.00046799]
[1756888478709,1.06759914,111250.0,111240.0,0.00046799]
[1756888478888,1.21544914,111250.0,111240.0,0.00254799]
[1756888479944,1.21861914,111250.0,111240.0,0.00254799]
[1756888481772,1.21861914,111250.0,111240.0,0.00046799]
[1756888482001,1.06753914,111250.0,111240.0,0.00046799]
[1756888482400,1.21861914,111250.0,111240.0,0.00046799]
[1756888483565,1.65551914,111250.0,111240.0,0.00046799]
[1756888484682,1.23189019,111250.0,111240.0,0.00254799]
[1756888484883,1.65551914,111250.0,111240.0,0.00046799]
[1756888493042,1.50443914,111250.0,111240.0,0.00046799]
[1756888493255,1.65551914,111250.0,111240.0,0.00046799]
[1756888495598,1.86774839,111250.0,111240.0,0.00046799]
[1756888499877,1.86770839,111250.0,111240.0,0.00046799]
[1756888518192,1.88715701,111250.0,111240.0,0.00046799]
[1756888518398,1.89348548,111250.0,111240.0,0.00046799]
[1756888519484,1.89348406,111250.0,111240.0,0.00046799]
[1756888527177,1.88715701,111250.0,111240.0,0.00046799]
[1756888527796,1.10025881,111250.0,111240.0,0.00046799]
[1756888528002,1.88192701,111250.0,111240.0,0.00246799]
[1756888528210,1.88723701,111250.0,111240.0,0.00046799]
[1756888533616,1.92095497,111250.0,111240.0,0.00046799]
[1756888533821,2.20516611,111250.0,111240.0,0.00046799]
[1756888534018,1.88723701,111250.0,111240.0,0.00046799]
[1756888537230,1.88835701,111250.0,111240.0,0.00046799]
[1756888540401,1.89467871,111250.0,111240.0,0.00046799]
[1756888548090,1.8946763,111250.0,111240.0,0.00046799]
[1756888551156,1.95834263,111250.0,111240.0,0.00046799]
[1756888551366,1.95814263,111250.0,111240.0,0.00046799]
[1756888551561,1.8944763,111250.0,111240.0,0.00046799]
[1756888557544,1.68262963,111250.0,111240.0,0.00046799]
[1756888560907,1.53070963,111250.0,111240.0,0.00046799]
[1756888561117,1.68242963,111250.0,111240.0,0.00246799]
[1756888561552,1.68242963,111250.0,111240.0,0.00046799]
[1756888561777,1.67707963,111250.0,111240.0,0.00547799]
[1756888562208,1.68215963,111250.0,111240.0,0.00246799]
[1756888562421,1.52539963,111250.0,111240.0,0.00246799]
[1756888562647,1.67711963,111250.0,111240.0,0.00246799]
[1756888562937,1.68219963,111250.0,111240.0,0.00246799]
[1756888564424,1.67587793,111250.0,111240.0,0.00046799]
[1756888565579,1.2467864,111250.0,111240.0,0.00547799]
[1756888565790,1.67079793,111250.0,111240.0,0.00547799]
[1756888565997,1.67079793,111250.0,111240.0,0.00246799]
[1756888566411,1.67079793,111250.0,111240.0,0.00547799]
[1756888567914,1.67293793,111250.0,111240.0,0.00246799]
[1756888568113,1.67587793,111250.0,111240.0,0.00246799]
[1756888569596,1.2518664,111250.0,111240.0,0.00246799]
[1756888570027,1.67587793,111250.0,111240.0,0.00246799]
[1756888570776,1.67587793,111250.0,111240.0,0.00046799]
[1756888571265,1.67587793,111250.0,111240.0,0.00242799]
[1756888573352,1.2518664,111250.0,111240.0,0.00242799]
[1756888573503,1.67587793,111250.0,111240.0,0.00242799]
[1756888576501,1.51907793,111250.0,111240.0,0.00242799]
[1756888576684,1.67059793,111250.0,111240.0,0.00555799]
[1756888577339,1.51907793,111250.0,111240.0,0.00555799]
[1756888577542,1.65115172,111250.0,111240.0,0.00555799]
[1756888578600,1.65115172,111250.0,111240.0,0.00242799]
[1756888578830,1.65314172,111250.0,111240.0,0.00242799]
[1756888579253,1.65626172,111250.0,111240.0,0.00046799]
[1756888580043,1.23225019,111250.0,111240.0,0.00046799]
[1756888580252,1.65626172,111250.0,111240.0,0.00046799]
[1756888581577,1.23225019,111250.0,111240.0,0.00242799]
[1756888581800,1.65626172,111250.0,111240.0,0.00046799]
[1756888582052,1.23225019,111250.0,111240.0,0.00046799]
[1756888582296,1.65626172,111250.0,111240.0,0.00046799]
[1756888590047,1.23225019,111250.0,111240.0,0.00046799]
[1756888590449,1.65626172,111250.0,111240.0,0.00046799]
[1756888592587,1.65459421,111250.0,111240.0,0.00046799]
[1756888600253,1.65459421,111250.0,111240.0,0.00246799]
[1756888600477,0.89584491,111250.0,111240.0,0.18550943]
[1756888600711,1.22678019,111250.0,111240.0,0.18550943]
[1756888601301,1.65079172,111250.0,111240.0,0.00571799]
[1756888601516,1.65079172,111250.0,111240.0,0.00246799]
[1756888601834,1.65604172,111250.0,111240.0,0.00046799]
[1756888603820,1.65604172,111250.0,111240.0,0.00246799]
[1756888604027,1.65604172,111250.0,111240.0,0.00046799]
[1756888605059,1.23203019,111250.0,111240.0,0.00246799]
[1756888605268,1.65604172,111250.0,111240.0,0.00046799]
[1756888610627,1.65604172,111250.0,111240.0,0.00246799]
[1756888610855,1.65604172,111250.0,111240.0,0.00046799]
[1756888612664,1.65604172,111250.0,111240.0,0.00246799]
[1756888613070,1.65604172,111250.0,111240.0,0.00046799]
[1756888615726,2.08005325,111250.0,111240.0,0.00046799]
[1756888615934,1.65604172,111250.0,111240.0,0.00046799]
[1756888619529,1.86802307,111250.0,111240.0,0.00046799]
[1756888620396,1.08087019,111250.0,111240.0,0.00046799]
[1756888620598,1.86798307,111250.0,111240.0,0.00046799]
[1756888624021,2.18597951,111250.0,111240.0,0.00046799]
[1756888624221,1.86798307,111250.0,111240.0,0.00046799]
[1756888627872,1.71686307,111250.0,111240.0,0.00046799]
[1756888628081,1.86798307,111250.0,111240.0,0.00246799]
[1756888629478,1.71161307,111250.0,111240.0,0.00246799]
[1756888629663,1.86273307,111250.0,111240.0,0.00544799]
[1756888630481,1.86273307,111250.0,111240.0,0.00246799]
[1756888630914,1.86473307,111250.0,111240.0,0.00246799]
[1756888632444,1.71361307,111250.0,111240.0,0.00246799]
[1756888632664,1.86473307,111250.0,111240.0,0.00246799]
[1756888633066,1.86767307,111250.0,111240.0,0.00246799]
[1756888633477,1.86767307,111250.0,111240.0,0.00046799]
[1756888646327,1.71161307,111250.0,111240.0,0.00245799]
[1756888646539,1.86763307,111250.0,111240.0,0.00245799]
[1756888646748,1.86763307,111250.0,111240.0,0.00046799]
[1756888650010,1.86763307,111250.0,111240.0,0.00245799]
[1756888651654,1.86763307,111250.0,111240.0,0.00046799]
[1756888652114,2.23233634,111250.0,111240.0,0.00046799]
[1756888652352,2.32425233,111250.0,111240.0,0.00046799]
[1756888652582,2.36541586,111250.0,111240.0,0.00046799]
[1756888653571,2.27349987,111250.0,111240.0,0.00046799]
[1756888653787,2.27649987,111250.0,111240.0,0.00046799]
[1756888654232,2.27949987,111250.0,111240.0,0.00046799]
[1756888655257,2.27649987,111250.0,111240.0,0.00046799]
[1756888655477,2.27949987,111250.0,111240.0,0.00046799]
[1756888656451,2.25520956,111250.0,111240.0,0.00046799]
[1756888657034,3.21818764,111250.0,111220.0,0.0004]
[1756888657237,1.47379692,111230.0,111220.0,0.0004]
[1756888657453,1.78595291,111230.0,111220.0,0.0004]
[1756888657652,1.79449778,111230.0,111220.0,0.0004]
[1756888659519,1.79549778,111230.0,111220.0,0.0004]
[1756888662555,1.90835259,111230.0,111220.0,0.0004]
[1756888663974,1.8164366,111230.0,111220.0,0.0004]
[1756888665538,1.6653566,111230.0,111220.0,0.0004]
[1756888665753,1.8164366,111230.0,111220.0,0.0004]
[1756888677136,1.6653566,111230.0,111220.0,0.0004]
[1756888677342,1.8164366,111230.0,111220.0,0.0004]
[1756888677942,1.90835259,111230.0,111220.0,0.0004]
[1756888678149,1.93406994,111230.0,111220.0,0.0004]
[1756888678781,1.78298994,111230.0,111220.0,0.0004]
[1756888678978,1.93406994,111230.0,111220.0,0.0004]
[1756888680455,1.78298994,111230.0,111220.0,0.0004]
[1756888680579,1.93406994,111230.0,111220.0,0.0004]
[1756888681413,1.95093618,111230.0,111220.0,0.0004]
[1756888681591,1.42119336,111230.0,111220.0,0.0004]
[1756888682827,1.32927737,111230.0,111220.0,0.0004]
[1756888683604,1.17819737,111230.0,111220.0,0.0004]
[1756888683794,1.32923737,111230.0,111220.0,0.0004]
[1756888683992,1.17819737,111230.0,111220.0,0.0004]
[1756888684131,1.32923737,111230.0,111220.0,0.0004]
[1756888684964,1.32924421,111230.0,111220.0,0.0004]
[1756888685304,1.35353452,111230.0,111220.0,0.0004]
[1756888685510,1.32924421,111230.0,111220.0,0.0004]
[1756888686440,1.35353452,111230.0,111220.0,0.0004]
[1756888686640,1.38859563,111230.0,111220.0,0.0004]
[1756888689036,1.38861438,111230.0,111220.0,0.0004]
[1756888695480,1.36432407,111230.0,111220.0,0.0004]
[1756888696095,1.38861438,111230.0,111220.0,0.0004]
[1756888696267,1.36432407,111230.0,111220.0,0.0004]
[1756888698686,1.35799466,111230.0,111220.0,0.0004]
[1756888698884,1.36432445,111230.0,111220.0,0.0004]
[1756888700399,1.38861476,111230.0,111220.0,0.0004]
[1756888706926,1.23757476,111230.0,111220.0,0.0004]
[1756888707226,1.38857476,111230.0,111220.0,0.0004]
[1756888709768,1.35351365,111230.0,111220.0,0.00241]
[1756888710035,1.35057365,111230.0,111220.0,0.00241]
[1756888710268,1.15234452,111230.0,111220.0,0.00551]
[1756888710493,1.28642635,111230.0,111220.0,0.00551]
[1756888710931,1.13546635,111230.0,111220.0,0.00551]
[1756888711162,1.28642635,111230.0,111220.0,0.00551]
[1756888713229,1.26702475,111230.0,111220.0,0.00551]
[1756888716594,1.26069496,111230.0,111220.0,0.00551]
[1756888718295,0.83644846,111230.0,111220.0,0.00551]
[1756888718594,1.26069496,111230.0,111220.0,0.00551]
[1756888719129,1.04057496,111230.0,111220.0,0.00551]
[1756888719362,1.19153496,111230.0,111220.0,0.00551]
[1756888721740,1.19153496,111230.0,111220.0,0.00241]
[1756888722355,1.19665496,111230.0,111220.0,0.0004]
[1756888728677,0.17983994,111210.0,111200.0,0.18906429]
[1756888728892,0.60408644,111210.0,111200.0,0.18906429]
[1756888729101,0.60408644,111210.0,111200.0,0.19108429]
[1756888729538,0.61301258,111210.0,111200.0,0.19108429]
[1756888729750,0.61301258,111210.0,111200.0,0.19086811]
[1756888729948,0.61301258,111210.0,111200.0,0.19091474]
[1756888730648,0.61301258,111210.0,111200.0,0.19191474]
[1756888730834,0.61301258,111210.0,111200.0,0.19291474]
[1756888731252,0.61301258,111210.0,111200.0,0.00406663]
[1756888733051,0.61301258,111210.0,111200.0,0.18392274]
[1756888737565,0.61813258,111210.0,111200.0,0.00406663]
[1756888740608,0.61301258,111210.0,111200.0,0.18392274]
[1756888741686,0.61599258,111210.0,111200.0,0.18392274]
[1756888743620,0.50984596,111210.0,111200.0,0.18392274]
[1756888746836,0.51198596,111210.0,111200.0,0.18392274]
[1756888750319,0.51198596,111210.0,111200.0,0.00406663]
[1756888750519,0.19388608,111210.0,111200.0,0.00406663]
[1756888750715,0.51198596,111210.0,111200.0,0.00406663]
[1756888751330,0.19388608,111210.0,111200.0,0.00406663]
[1756888751626,0.51198596,111210.0,111200.0,0.18392274]
[1756888753582,0.51198596,111210.0,111200.0,0.18190274]
[1756888757171,0.19388608,111210.0,111200.0,0.18190274]
[1756888757388,0.51198596,111210.0,111200.0,0.18190274]
[1756888762530,0.31809988,111210.0,111200.0,0.18388274]
[1756888763053,0.3301697,111210.0,111200.0,0.18388274]
[1756888763387,0.46393415,111220.0,111210.0,0.17983994]
[1756888763647,0.4369,111220.0,111210.0,0.57280781]
[1756888763861,0.02703189,111230.0,111220.0,0.17982377]
[1756888764072,0.01194799,111250.0,111230.0,0.17979197]
[1756888764494,0.00312,111250.0,111240.0,0.17979144]
[1756888764708,0.00312,111250.0,111240.0,0.18401883]
[1756888764933,0.02702879,111250.0,111240.0,0.33977144]
[1756888765186,0.50097957,111260.0,111240.0,0.33977144]
[1756888765383,0.44016077,111260.0,111250.0,0.18202247]
[1756888765604,0.35034478,111260.0,111250.0,0.19659954]
[1756888765810,0.35081245,111260.0,111250.0,0.19659954]
[1756888765944,0.69081245,111260.0,111250.0,0.19659954]
[1756888766154,0.34568767,111260.0,111250.0,0.19659954]
[1756888766566,0.66378755,111260.0,111250.0,0.19658513]
[1756888767292,0.98188743,111260.0,111250.0,0.19658513]
[1756888767747,0.66378755,111260.0,111250.0,0.19658513]
[1756888767955,0.31856755,111260.0,111250.0,0.19856513]
[1756888768161,0.00046767,111260.0,111250.0,0.19856513]
[1756888768308,0.31856755,111260.0,111250.0,0.19856513]
[1756888768733,0.31956755,111260.0,111250.0,0.19856513]
[1756888769981,0.31956755,111260.0,111250.0,0.19853017]
[1756888771011,0.32478755,111260.0,111250.0,0.19853017]
[1756888771647,0.32268755,111260.0,111250.0,0.19853017]
[1756888772046,0.32478755,111260.0,111250.0,0.19853017]
[1756888773482,0.32478755,111260.0,111250.0,0.19851074]
[1756888773683,0.00668767,111260.0,111250.0,0.19851074]
[1756888773887,0.00668767,111260.0,111250.0,0.35679074]
[1756888773888,0.31956755,111260.0,111250.0,0.35679074]
[1756888774718,0.31956755,111260.0,111250.0,0.35675074]
[1756888774924,0.00458767,111260.0,111250.0,0.35675074]
[1756888775171,0.32268755,111260.0,111250.0,0.35675074]
[1756888778162,0.32268755,111260.0,111250.0,0.19851074]
[1756888778371,0.32478755,111260.0,111250.0,0.19851074]
[1756888778581,0.32478755,111260.0,111250.0,0.35461074]
[1756888779652,0.32478755,111260.0,111250.0,0.19653074]
[1756888779830,0.32478755,111260.0,111250.0,0.35461074]
[1756888782668,0.32478755,111260.0,111250.0,0.35457074]
[1756888784667,0.32478755,111260.0,111250.0,0.19653074]
[1756888784882,0.32478755,111260.0,111250.0,0.35445074]
[1756888785427,0.32478755,111260.0,111250.0,0.35429074]
[1756888785633,0.64288743,111260.0,111250.0,0.35429074]
[1756888786480,0.00668767,111260.0,111250.0,0.35629074]
[1756888786685,0.32478755,111260.0,111250.0,0.35629074]
[1756888788396,0.00146767,111260.0,111250.0,0.35777074]
[1756888788620,0.31956755,111260.0,111250.0,0.35777074]
[1756888788827,0.00146767,111260.0,111250.0,0.35629074]
[1756888789039,0.31956755,111260.0,111250.0,0.35629074]
[1756888789249,0.00146767,111260.0,111250.0,0.35777074]
[1756888789461,0.31809988,111270.0,111260.0,0.17974644]
[1756888789679,0.31809988,111270.0,111260.0,0.20074888]
[1756888789902,0.32325988,111270.0,111260.0,0.1985019]
[1756888790346,0.32325988,111270.0,111260.0,0.3562219]
[1756888790851,0.32325988,111270.0,111260.0,0.1985019]
[1756888791055,0.32425988,111270.0,111260.0,0.3562219]
[1756888791258,0.32625988,111270.0,111260.0,0.3562219]
[1756888791883,0.32109988,111270.0,111260.0,0.3562219]
[1756888792218,0.32625988,111270.0,111260.0,0.3562219]
[1756888792635,0.00816,111270.0,111260.0,0.3562219]
[1756888792842,0.32625988,111270.0,111260.0,0.3562219]
[1756888793357,0.32325988,111270.0,111260.0,0.3562219]
[1756888793766,0.32325988,111270.0,111260.0,0.3572219]
[1756888794551,0.00516,111270.0,111260.0,0.3572219]
[1756888794965,0.32325988,111270.0,111260.0,0.3572219]
[1756888795387,0.32325988,111270.0,111260.0,0.33822644]
[1756888795812,0.32325988,111270.0,111260.0,0.33810644]
[1756888796898,0.32325988,111270.0,111260.0,0.18074644]
[1756888797331,0.32325988,111270.0,111260.0,0.33798644]
[1756888798862,0.50300284,111270.0,111260.0,0.33798644]
[1756888799716,0.50300284,111270.0,111260.0,0.33795912]
[1756888800364,0.50300284,111270.0,111260.0,0.001]
[1756888800365,0.82110272,111270.0,111260.0,0.001]
[1756888800624,0.82110272,111270.0,111260.0,0.158]
[1756888800846,0.18490296,111270.0,111260.0,0.158]
[1756888801061,0.82110272,111270.0,111260.0,0.158]
[1756888801707,1.16110272,111270.0,111260.0,0.158]
[1756888802131,1.18812416,111270.0,111260.0,0.158]
[1756888803489,0.5519244,111270.0,111260.0,0.158]
[1756888803736,0.9757226,111270.0,111260.0,0.158]
[1756888804595,1.1495839,111270.0,111260.0,0.158]
[1756888804806,0.9757226,111270.0,111260.0,0.001]
[1756888805016,1.1494639,111270.0,111260.0,0.001]
[1756888805230,1.1326026,111270.0,111260.0,0.001]
[1756888806101,1.22451859,111270.0,111260.0,0.001]
[1756888806942,1.66141859,111270.0,111260.0,0.001]
[1756888807369,1.23762039,111270.0,111260.0,0.001]
[1756888807578,1.66141859,111270.0,111260.0,0.001]
[1756888808189,0.17975912,111260.0,111250.0,0.1568]
[1756888808420,0.94871732,111260.0,111250.0,0.15684663]
[1756888808637,1.04063331,111260.0,111250.0,4.663e-05]
[1756888809224,1.06765894,111260.0,111250.0,4.663e-05]
[1756888811284,1.06865894,111260.0,111250.0,4.663e-05]
[1756888811906,1.06965894,111260.0,111250.0,4.663e-05]
[1756888812108,1.22629894,111260.0,111250.0,4.663e-05]
[1756888812321,1.22621894,111260.0,111250.0,4.663e-05]
[1756888816155,1.65001714,111260.0,111250.0,4.663e-05]
[1756888816355,1.22621894,111260.0,111250.0,4.663e-05]
[1756888816567,1.65001714,111260.0,111250.0,4.663e-05]
[1756888819366,1.67095596,111260.0,111250.0,4.663e-05]
[1756888819578,1.65001714,111260.0,111250.0,4.663e-05]
[1756888819778,1.51439596,111260.0,111250.0,4.663e-05]
[1756888819980,1.67063596,111260.0,111250.0,4.663e-05]
[1756888821132,1.51439596,111260.0,111250.0,4.663e-05]
[1756888821342,1.67059596,111260.0,111250.0,4.663e-05]
[1756888823219,1.64965714,111260.0,111250.0,4.663e-05]
[1756888823860,1.67059596,111260.0,111250.0,4.663e-05]
[1756888824423,1.51439596,111260.0,111250.0,4.663e-05]
[1756888824629,1.67043596,111260.0,111250.0,4.663e-05]
[1756888826641,1.49345714,111260.0,111250.0,4.663e-05]
[1756888826848,1.22553894,111260.0,111250.0,4.663e-05]
[1756888827039,1.06965894,111260.0,111250.0,4.663e-05]
[1756888827345,1.22553894,111260.0,111250.0,0.00204663]
[1756888827989,1.64933714,111260.0,111250.0,4.663e-05]
[1756888836242,1.66618259,111260.0,111250.0,4.663e-05]
[1756888837415,1.67250102,111260.0,111250.0,4.663e-05]
[1756888838456,1.69191568,111260.0,111250.0,4.663e-05]
[1756888841082,1.69192606,111260.0,111250.0,4.663e-05]
[1756888842495,1.71286488,111260.0,111250.0,4.663e-05]
[1756888846730,0.4237982,111220.0,111210.0,0.23915487]
[1756888846950,0.4237982,111220.0,111210.0,0.24157254]
[1756888847820,0.4237982,111220.0,111210.0,0.16802623]
[1756888848262,0.4237982,111220.0,111210.0,0.17202623]
[1756888848675,0.4237982,111220.0,111210.0,0.17502623]
[1756888849327,0.4237982,111220.0,111210.0,0.17202623]
[1756888849532,0.4237982,111220.0,111210.0,0.17402623]
[1756888850349,0.4237982,111220.0,111210.0,0.17002623]
[1756888850525,0.4237982,111220.0,111210.0,0.17102623]
[1756888852581,0.4237982,111220.0,111210.0,0.17302623]
[1756888854156,0.03592561,111230.0,111220.0,0.17982377]
[1756888854358,0.45972381,111230.0,111220.0,0.18325377]
[1756888854509,0.02703071,111230.0,111220.0,0.33797377]
[1756888854942,0.34904288,111240.0,111230.0,0.1798076]
[1756888855174,0.37606992,111240.0,111230.0,0.18548519]
[1756888855419,0.37606992,111240.0,111230.0,0.1832376]
[1756888855625,0.79986812,111240.0,111230.0,0.1832376]
[1756888858970,0.79986812,111240.0,111230.0,0.1817576]
[1756888859172,0.97965956,111240.0,111230.0,0.3363976]
[1756888859542,0.97965956,111240.0,111230.0,0.1817576]
[1756888859952,0.98491956,111240.0,111230.0,0.3362776]
[1756888860392,0.98491956,111240.0,111230.0,0.15452]
[1756888860802,0.98491956,111240.0,111230.0,0.3343276]
[1756888862633,0.98491956,111240.0,111230.0,0.15452]
[1756888862846,0.56112136,111240.0,111230.0,0.15452]
[1756888863010,0.98491956,111240.0,111230.0,0.3343276]
[1756888864051,0.98491956,111240.0,111230.0,0.3362776]
[1756888864459,0.98491956,111240.0,111230.0,0.3343276]
[1756888864621,0.97965956,111240.0,111230.0,0.3362776]
[1756888865420,1.19172814,111240.0,111230.0,0.3362776]
[1756888865870,1.19494814,111240.0,111230.0,0.3362776]
[1756888866102,1.19698814,111240.0,111230.0,0.15452]
[1756888866622,0.1798076,111230.0,111220.0,0.17982377]
[1756888866833,0.50096099,111230.0,111220.0,0.33609377]
[1756888867259,0.32115339,111230.0,111220.0,0.33609377]
[1756888867676,0.32319339,111230.0,111220.0,0.33609377]
[1756888867831,0.32319339,111230.0,111220.0,0.33709377]
[1756888868036,0.32319339,111230.0,111220.0,0.33809377]
[1756888868775,0.31956997,111230.0,111220.0,0.33809377]
[1756888869454,0.31956997,111230.0,111220.0,0.33801377]
[1756888869677,0.49937757,111230.0,111220.0,0.18182377]
[1756888869833,0.1850676,111230.0,111220.0,0.33598377]
[1756888870015,0.82093438,111230.0,111220.0,0.33598377]
[1756888870218,0.50300099,111230.0,111220.0,0.33598377]
[1756888874436,0.50300099,111230.0,111220.0,0.33806377]
[1756888874437,0.1850676,111230.0,111220.0,0.33806377]
[1756888874644,0.50300099,111230.0,111220.0,0.33598377]